[Event "Gibraltar Amateurs B 2020"]
[Site "Caleta"]
[Date "2020.01.27"]
[Round "4.8"]
[White "Oueld El Hachemi, Abdelhaq"]
[Black "Dumont, Andre"]
[Result "0-1"]
[ECO "D02"]
[WhiteElo "1788"]
[BlackElo "1872"]
[Annotator "NA"]
[PlyCount "110"]
[EventDate "2020.01.20"]
[EventType "swiss"]
[EventCountry "GGB"]
[SourceTitle "playchess.com"]
[Source "ChessBase"]
[SourceQuality "1"]
[TimeControl "6600+10"]

1. d4 {[%emt 0:00:03]} Nf6 {[%emt 0:00:06]} 2. Nf3 {[%emt 0:00:18]} d5 {[%emt 0:00:10]} 3. Nc3 {[%emt 0:00:30]} e6 {[%emt 0:00:25]} 4. g3 {[%emt 0:00:13]} c5 {[%emt 0:00:45]} 5. Bg2 {[%emt 0:00:13]} Nc6 {[%emt 0:01:34]} 6. O-O {[%emt 0:00:14]} cxd4 {[%emt 0:00:25] D02: 1 d4 d5 2 Nf3 sidelines, including 2...Nf6 3 g3 and 2...Nf6 3 Bf4} (6... Be7 7. dxc5 Bxc5 8. Bf4 O-O 9. Qd3 Re8 10. Ne5 Nh5 11. Rad1 Nxf4 12. gxf4 Bd6 13. Qg3 Bb8 14. e4 Nxe5 15. fxe5 {½-½ (56) Gajewski,G (2637)-Oleksienko,M (2608) Reykjavik 2013}) 7. Nxd4 {[%emt 0:00:20]} e5 {[%emt 0:01:40]} 8. Nb3 {[%emt 0:00:10]} d4 {[%emt 0:03:52]} 9. Ne4 {[%emt 0:00:35]} Be7 {[%emt 0:04:10]} 10. e3 $146 {[%emt 0:00:14]} ({Predecessor:} 10. f4 O-O 11. fxe5 Ng4 12. e3 dxe3 13. h3 Qxd1 14. Rxd1 Ngxe5 15. Bxe3 {0-1 (50) Yapici,K (1781)-Ulybin,M (2499) Ankara 2017}) 10... dxe3 {[%emt 0:01:36]} 11. Nxf6+ {[%emt 0:00:59]} Bxf6 {[%emt 0:00:21]} 12. Qxd8+ {[%emt 0:00:30]} Nxd8 {[%emt 0:00:48]} 13. Bxe3 {[%emt 0:00:34]} a5 {[%emt 0:02:54]} 14. Nc5 {[%emt 0:01:41]} O-O {[%emt 0:05:43]} 15. c3 {[%emt 0:00:50]} Be7 {[%emt 0:06:28]} 16. Rfd1 {[%emt 0:01:16]} Bxc5 {[%emt 0:05:54]} 17. Bxc5 {[%emt 0:00:11]} Re8 {[%emt 0:00:03]} 18. Bb6 {[%emt 0:01:14]} Nc6 {[%emt 0:01:18]} 19. Rd6 {[%emt 0:01:00]} e4 {[%emt 0:02:58]} 20. Bf1 {[%emt 0:01:10]} Be6 {[%emt 0:04:46]} 21. Bb5 {[%emt 0:00:33]} Rec8 {[%emt 0:00:19]} 22. Rad1 {[%emt 0:03:51]} ({Better is} 22. Re1 $16) 22... h6 {[%emt 0:00:19]} 23. a3 {[%emt 0:06:55]} Ne5 {[%emt 0:03:23]} 24. Kg2 {[%emt 0:07:40]} Bc4 {[%emt 0:02:14]} 25. Bd7 {[%emt 0:01:00]} Rf8 {[%emt 0:20:08]} 26. R1d4 {[%emt 0:09:24]} Be2 {[%emt 0:02:21]} 27. R6d5 {[%emt 0:04:38]} Nd3 {[%emt 0:11:14]} 28. Rxe4 {[%emt 0:02:46]} Ne1+ {[%emt 0:00:17]} 29. Kg1 {[%emt 0:04:21]} Bf3 {[%emt 0:00:02]} 30. Rxe1 {[%emt 0:00:20]} Bxd5 {[%emt 0:00:05]} 31. Re5 {[%emt 0:00:35]} Bc6 {[%emt 0:03:24]} 32. Bxc6 {[%emt 0:01:13]} bxc6 {[%emt 0:00:01]} 33. Bxa5 {[%emt 0:01:10]} Rfb8 {[%emt 0:03:29]} 34. b4 {[%emt 0:04:55]} Re8 {[%emt 0:00:59]} 35. Rc5 {[%emt 0:00:14]} Re6 {[%emt 0:00:21]} 36. c4 {[%emt 0:02:58]} Kf8 {[%emt 0:00:20]} 37. Kf1 {[%emt 0:01:11]} Ke8 {[%emt 0:00:11]} 38. h4 {[%emt 0:00:43]} Kd7 {[%emt 0:00:10]} 39. Rf5 {[%emt 0:00:44]} f6 {[%emt 0:00:19]} 40. Rf3 {[%emt 0:00:33]} Rd6 {[%emt 0:01:37]} 41. Bb6 {[%emt 0:00:37]} Rd1+ {[%emt 0:01:01]} 42. Ke2 {[%emt 0:00:25]} Ra1 {[%emt 0:00:07]} 43. Rd3+ {[%emt 0:00:32]} Ke8 {[%emt 0:03:13]} 44. Ba5 {[%emt 0:00:36]} Ra7 {[%emt 0:00:58]} 45. Rd8+ {[%emt 0:04:29]} Ke7 {[%emt 0:01:53]} 46. Rd3 $11 {[%emt 0:00:04]} Ke6 {[%emt 0:00:17]} 47. Kf3 {[%emt 0:01:38]} g5 {[%emt 0:01:21]} 48. Re3+ {[%emt 0:00:50]} Kf7 {[%emt 0:00:12]} 49. hxg5 {[%emt 0:00:09]} hxg5 {[%emt 0:01:10]} 50. Kg4 {[%emt 0:00:29]} Re7 {[%emt 0:00:14]} 51. Rc3 {[%emt 0:01:27]} Re2 {[%emt 0:01:20]} 52. Rf3 $2 {[%emt 0:01:51]} (52. Bb6 $11 {and White is okay.}) 52... Kg6 {[%emt 0:00:28]} 53. Kh3 {[%emt 0:02:48]} Re4 {[%emt 0:00:20]} 54. Rc3 {[%emt 0:00:13]} g4+ {[%emt 0:00:05]} 55. Kg2 {[%emt 0:01:01]} Ree1 {[%emt 0:00:02]} 0-1

[Event "Gibraltar Amateurs B 2020"]
[Site "Caleta"]
[Date "2020.01.27"]
[Round "4.9"]
[White "Dragic, Dragan"]
[Black "Nebel, Uwe"]
[Result "1-0"]
[ECO "B20"]
[WhiteElo "1781"]
[BlackElo "1847"]
[Annotator "NA"]
[PlyCount "51"]
[EventDate "2020.01.20"]
[EventType "swiss"]
[EventCountry "GGB"]
[SourceTitle "playchess.com"]
[Source "ChessBase"]
[SourceQuality "1"]
[TimeControl "6600+10"]

1. e4 {[%emt 0:00:00]} c5 {[%emt 0:00:19]} 2. Ne2 {[%emt 0:00:03]} d5 {[%emt 0:01:52]} (2... d6 3. g3 Nf6 4. Bg2 g6 5. c3 Bg7 6. d4 O-O 7. O-O Qc7 8. Na3 a6 9. h3 Nbd7 10. Be3 Rb8 11. f4 e5 12. dxe5 dxe5 13. Nc4 b5 14. Qd6 Qxd6 15. Nxd6 {0-1 (66) Vallejo Pons,F (2704)-Sethuraman,S (2638) Moscow 2019}) 3. exd5 {[%emt 0:01:46]} Qxd5 {[%emt 0:00:50]} 4. Nbc3 {[%emt 0:00:13]} Qd8 {[%emt 0:02:19]} 5. d4 {[%emt 0:00:19]} cxd4 {[%emt 0:02:45]} 6. Qxd4 {[%emt 0:00:30] B20: Sicilian: Unusual White 2nd moves} Qxd4 {[%emt 0:00:54]} 7. Nxd4 {[%emt 0:00:09]} a6 {[%emt 0:00:48]} 8. Nd5 {[%emt 0:00:25]} e5 $146 {[%emt 0:04:02]} ({Predecessor:} 8... Kd8 9. Nb6 Ra7 10. Nxc8 Kxc8 11. Be3 Ra8 12. O-O-O {½-½ (30) Pucholt,M (1619)-Plesnivy,M (1799) Prague 2014}) 9. Nc7+ {[%emt 0:02:51]} Kd7 {[%emt 0:01:09]} 10. Nxa8 {[%emt 0:00:23]} exd4 {[%emt 0:00:14]} 11. Nb6+ {[%emt 0:00:09]} Kd8 {[%emt 0:00:46]} 12. Bg5+ {[%emt 0:01:20]} f6 {[%emt 0:00:46]} 13. Bf4 {[%emt 0:00:52]} Nc6 {[%emt 0:00:18]} 14. O-O-O {[%emt 0:00:34]} Be6 {[%emt 0:02:44]} 15. Bc4 {[%emt 0:00:11]} Bxc4 {[%emt 0:00:45]} 16. Nxc4 {[%emt 0:00:11]} Bc5 {[%emt 0:00:19]} 17. c3 {[%emt 0:00:43]} Nge7 {[%emt 0:01:54]} 18. b4 {[%emt 0:00:29]} Ba7 {[%emt 0:01:40]} 19. Nd6 {[%emt 0:00:10]} Nd5 {[%emt 0:02:28]} 20. Bg3 {[%emt 0:01:53]} Nxc3 {[%emt 0:01:54]} 21. Nf7+ {[%emt 0:00:09]} Kc8 {[%emt 0:00:09]} 22. Nxh8 {[%emt 0:00:09]} Nxb4 {[%emt 0:00:09]} 23. Kb2 {[%emt 0:01:14]} Nxd1+ {[%emt 0:06:56]} 24. Rxd1 {[%emt 0:00:19]} d3 {[%emt 0:00:09]} 25. a3 {[%emt 0:00:46]} Bd4+ $18 {[%emt 0:00:28]} 26. Kb3 {[%emt 0:00:24]} 1-0

[Event "Gibraltar Amateurs B 2020"]
[Site "Caleta"]
[Date "2020.01.27"]
[Round "4.10"]
[White "Gonzalez Pabollet, Jesus Maria S"]
[Black "Martos Amiguet, Valentina"]
[Result "0-1"]
[ECO "D30"]
[WhiteElo "1845"]
[BlackElo "1745"]
[Annotator "NA"]
[PlyCount "108"]
[EventDate "2020.01.20"]
[EventType "swiss"]
[EventCountry "GGB"]
[SourceTitle "playchess.com"]
[Source "ChessBase"]
[SourceQuality "1"]
[TimeControl "6600+10"]

1. Nf3 {[%emt 0:01:48]} d5 {[%emt 0:00:07]} 2. b3 {[%emt 0:00:25]} Nf6 {[%emt 0:00:26]} 3. Bb2 {[%emt 0:00:12]} e6 {[%emt 0:00:12]} 4. g3 {[%emt 0:01:29]} Be7 {[%emt 0:00:43]} 5. Bg2 {[%emt 0:00:26]} O-O {[%emt 0:00:22]} 6. O-O {[%emt 0:00:19]} c5 {[%emt 0:00:48]} 7. c4 {[%emt 0:04:14]} Nc6 {[%emt 0:03:34]} 8. cxd5 {[%emt 0:07:48]} exd5 {[%emt 0:00:47]} 9. d4 {[%emt 0:02:35]} Bf5 {[%emt 0:12:20]} 10. Nbd2 {[%emt 0:09:04] D30: Queen's Gambit Declined: Systems without Nc3} (10. Nc3 Rc8 11. Rc1 Qa5 12. e3 Rfd8 13. dxc5 Bxc5 14. Ne2 Be7 15. a3 Be4 16. b4 Qb6 17. Nc3 a5 18. b5 Bxf3 19. Qxf3 {1-0 (37) Hera,I (2619)-Nemeth,M (2496) Budapest 2019}) 10... Rc8 {[%emt 0:09:17]} 11. a3 {[%emt 0:07:32]} b6 $146 {[%emt 0:04:17]} ({Predecessor:} 11... h6 12. dxc5 Bxc5 13. Rc1 Bb6 14. b4 Qe7 15. Nb3 Rfd8 16. e3 Ne4 17. Nfd4 Bg6 {½-½ (31) Schiavo,M (2070)-Franca,J (1816) Florianopolis 2019}) 12. e3 {[%emt 0:10:09]} Ne4 {[%emt 0:05:47]} 13. Rc1 {[%emt 0:12:53]} Re8 {[%emt 0:01:11]} 14. Re1 {[%emt 0:03:06]} Bf6 {[%emt 0:05:46]} 15. Ba1 {[%emt 0:04:56]} Bg4 {[%emt 0:06:16]} 16. h3 {[%emt 0:02:08]} Bf5 {[%emt 0:01:38]} 17. g4 {[%emt 0:04:25]} Bg6 {[%emt 0:04:47]} 18. Bf1 {[%emt 0:00:53]} cxd4 {[%emt 0:14:27]} 19. exd4 {[%emt 0:07:10]} Bh4 {[%emt 0:04:31]} 20. Re2 {[%emt 0:04:35]} h5 {[%emt 0:04:24]} 21. Nxh4 {[%emt 0:02:16]} Qxh4 {[%emt 0:00:13]} 22. Nf3 {[%emt 0:01:31]} Qf6 {[%emt 0:00:59]} 23. Re3 {[%emt 0:05:30]} hxg4 {[%emt 0:01:24]} 24. hxg4 {[%emt 0:00:20]} Qf4 {[%emt 0:01:50]} 25. Bh3 {[%emt 0:02:21]} Kh7 $2 {[%emt 0:06:44]} (25... Re6 $19 {and Black stays clearly on top.} 26. Qe1 Rce8) 26. Qe1 {[%emt 0:00:41] [#]} Rh8 {[%emt 0:01:57]} (26... f5 $1 $19 {[%cal Rf5g4]} 27. Bg2 Qxg4) 27. Kg2 {[%emt 0:01:51]} Kg8 {[%emt 0:02:10]} 28. Ne5 {[%emt 0:00:34]} Ne7 {[%emt 0:04:56]} 29. Rxc8+ {[%emt 0:02:34]} Nxc8 {[%emt 0:00:05]} 30. Nd3 {[%emt 0:02:08]} Qg5 {[%emt 0:01:55]} 31. Qc1 {[%emt 0:01:03]} Ncd6 {[%emt 0:01:06]} 32. f3 {[%emt 0:01:27]} Rxh3 {[%emt 0:08:10]} 33. Kxh3 {[%emt 0:00:18]} Qh6+ {[%emt 0:00:13]} 34. Kg2 {[%emt 0:00:21]} Nf6 {[%emt 0:00:27]} 35. Re1 {[%emt 0:01:54]} Bxd3 {[%emt 0:00:19]} 36. g5 $2 {[%emt 0:01:05]} (36. Qxh6 $15 gxh6 37. Bc3) 36... Qg6 {[%emt 0:00:19]} 37. Kf2 {[%emt 0:00:26]} Nh5 {[%emt 0:00:32]} 38. Bc3 {[%emt 0:01:31]} (38. Rh1 $142) 38... Qf5 {[%emt 0:00:07]} 39. Bb4 {[%emt 0:00:23]} Ne4+ {[%emt 0:00:11] Double Attack} 40. Ke3 {[%emt 0:00:37]} Neg3 {[%emt 0:00:52]} 41. Kd2 {[%emt 0:00:17]} Ba6 {[%emt 0:00:17]} 42. Re3 $2 {[%emt 0:00:47]} (42. Re8+ $17 Kh7 43. Qc2) 42... Nf1+ $19 {[%emt 0:00:04] Double Attack} 43. Kc3 {[%emt 0:00:31]} Nxe3 {[%emt 0:00:07]} 44. Qxe3 {[%emt 0:00:03]} Qc8+ {[%emt 0:00:05]} 45. Kb2 {[%emt 0:00:06]} Qe6 {[%emt 0:00:11]} 46. Qc1 {[%emt 0:00:35]} Qe2+ {[%emt 0:00:14]} 47. Bd2 {[%emt 0:00:16]} Qd3 {[%emt 0:00:15]} 48. Be3 {[%emt 0:00:12]} Qe2+ {[%emt 0:00:08]} 49. Bd2 {[%emt 0:00:02]} Nf4 {[%emt 0:00:15]} 50. Qc2 {[%emt 0:00:17]} Nd3+ {[%emt 0:00:05]} 51. Ka2 {[%emt 0:00:11]} Qxf3 {[%emt 0:00:13]} 52. Qc7 {[%emt 0:00:12]} Qe2 {[%emt 0:00:10]} 53. Qb8+ {[%emt 0:00:09]} Kh7 {[%emt 0:00:02]} 54. g6+ {[%emt 0:00:11]} fxg6 {[%emt 0:00:09]} 0-1

[Event "Gibraltar Amateurs B 2020"]
[Site "Caleta"]
[Date "2020.01.27"]
[Round "4.11"]
[White "Jacob, Sydney J"]
[Black "Sagar Siya"]
[Result "0-1"]
[ECO "C48"]
[WhiteElo "1816"]
[BlackElo "1740"]
[Annotator "NA"]
[PlyCount "96"]
[EventDate "2020.01.20"]
[EventType "swiss"]
[EventCountry "GGB"]
[SourceTitle "playchess.com"]
[Source "ChessBase"]
[SourceQuality "1"]
[TimeControl "6600+10"]

1. e4 {[%emt 0:15:17]} e5 {[%emt 0:00:16]} 2. Nf3 {[%emt 0:00:05]} Nc6 {[%emt 0:00:07]} 3. Bb5 {[%emt 0:00:07]} a6 {[%emt 0:00:05]} 4. Ba4 {[%emt 0:00:11]} Nf6 {[%emt 0:00:06]} 5. O-O {[%emt 0:00:21]} Be7 {[%emt 0:00:04]} 6. Bxc6 {[%emt 0:00:17]} dxc6 {[%emt 0:00:21]} 7. Nc3 {[%emt 0:00:12]} Bd6 {[%emt 0:00:12]} 8. d4 {[%emt 0:01:43] C48: Four Knights: 4 Bb5, replies other than 4...Bb4} Qe7 {[%emt 0:00:26]} (8... exd4 9. Qxd4 Be7 10. Qxd8+ Bxd8 11. h3 Nd7 12. Bf4 Nf8 13. Ne2 Ne6 14. Bh2 Bf6 15. c3 Bd7 {0-1 (34) Saptarshi,R (2433)-Nikolov,M (2518) Golden Sands 2014}) 9. dxe5 {[%emt 0:03:07]} Bxe5 {[%emt 0:00:21]} 10. Nxe5 {[%emt 0:02:10]} Qxe5 {[%emt 0:00:21]} 11. h3 {[%emt 0:00:57]} Bd7 {[%emt 0:01:33]} 12. Qf3 {[%emt 0:02:47]} O-O-O {[%emt 0:03:15]} 13. Bf4 {[%emt 0:03:18]} Qe7 $146 {[%emt 0:01:44]} ({Predecessor:} 13... Qa5 14. Qg3 Nh5 15. Qg5 Qxg5 16. Bxg5 {1-0 (59) Paiva,L (1753)-Laroca,A (1555) Fortaleza 2012}) 14. e5 {[%emt 0:05:42]} Nd5 {[%emt 0:02:00]} 15. Bh2 {[%emt 0:03:12]} g5 {[%emt 0:03:26]} 16. Ne4 {[%emt 0:03:53]} h5 {[%emt 0:03:49]} 17. Nf6 {[%emt 0:06:40] [#]} g4 $1 {[%emt 0:04:24]} 18. Nxd5 {[%emt 0:03:12]} cxd5 {[%emt 0:00:21]} 19. hxg4 {[%emt 0:03:45]} (19. Qf6 $17 {might work better.} Qxf6 20. exf6) 19... hxg4 {[%emt 0:07:35]} 20. Qf6 {[%emt 0:03:42]} Qxf6 {[%emt 0:02:37]} (20... Qc5 $19 {is more deadly.} 21. Bg3 Rh5) 21. exf6 {[%emt 0:00:16]} Rh6 {[%emt 0:02:59]} 22. Be5 {[%emt 0:02:32]} Re8 {[%emt 0:02:04]} 23. Rfe1 {[%emt 0:02:03]} Rh5 {[%emt 0:04:04]} 24. Bf4 {[%emt 0:05:39] [#]} (24. Bg3 $17) 24... Reh8 $1 {[%emt 0:03:58]} 25. f3 {[%emt 0:00:20]} Rf5 $17 {[%emt 0:04:19]} (25... gxf3 $19 26. g4 Rh4) 26. g3 {[%emt 0:05:46]} gxf3 {[%emt 0:01:25]} 27. Kf2 {[%emt 0:01:39]} Rh2+ {[%emt 0:01:08]} 28. Kxf3 {[%emt 0:00:36]} Rxc2 {[%emt 0:00:50]} 29. Re7 {[%emt 0:04:54]} Be6 {[%emt 0:14:36]} 30. Rh1 {[%emt 0:03:01]} b6 {[%emt 0:00:24]} 31. Ke3 {[%emt 0:02:45]} Rxf6 {[%emt 0:02:01]} 32. Kd3 {[%emt 0:05:36]} Rc6 {[%emt 0:08:37]} 33. Rh8+ {[%emt 0:06:43]} Kb7 {[%emt 0:00:12]} 34. b3 {[%emt 0:00:17]} Bf5+ {[%emt 0:02:59]} 35. Kd4 {[%emt 0:01:40]} Rfe6 {[%emt 0:00:55]} 36. Rxe6 {[%emt 0:03:33]} Bxe6 {[%emt 0:00:18]} 37. Re8 {[%emt 0:01:27]} Rc2 {[%emt 0:01:33]} 38. a4 {[%emt 0:00:14]} Kc6 {[%emt 0:05:24]} 39. Re7 {[%emt 0:00:59]} Kb7 {[%emt 0:00:24]} 40. Re8 {[%emt 0:00:09]} c5+ {[%emt 0:02:13]} 41. Ke5 {[%emt 0:00:26]} Kc6 {[%emt 0:01:06]} 42. Kf6 {[%emt 0:00:42]} d4 {[%emt 0:00:47]} 43. Re7 {[%emt 0:00:59]} d3 {[%emt 0:01:29]} 44. Rc7+ {[%emt 0:01:07]} Kd5 {[%emt 0:00:10]} 45. Rb7 {[%emt 0:00:28]} d2 {[%emt 0:02:03]} 46. Bxd2 {[%emt 0:00:12]} Rxd2 {[%emt 0:00:14]} 47. Rxb6 {[%emt 0:00:12]} Rb2 {[%emt 0:00:48]} 48. a5 {[%emt 0:01:24]} Kd4 {[%emt 0:01:24]} 0-1

[Event "Gibraltar Amateurs B 2020"]
[Site "Caleta"]
[Date "2020.01.29"]
[Round "5.1"]
[White "Nwachukwu, Chino"]
[Black "Bryant, Richard B E"]
[Result "1-0"]
[ECO "C06"]
[WhiteElo "1868"]
[BlackElo "1849"]
[Annotator "NA RC"]
[PlyCount "113"]
[EventDate "2020.01.20"]
[EventType "swiss"]
[EventCountry "GGB"]
[SourceTitle "playchess.com"]
[Source "ChessBase"]
[SourceQuality "1"]
[TimeControl "6600+10"]

1. e4 {[%emt 0:04:23]} e6 {[%emt 0:00:00]} 2. d4 {[%emt 0:00:05]} d5 {[%emt 0:00:03]} 3. Nd2 {[%emt 0:00:24]} Nf6 {[%emt 0:00:10]} 4. e5 {[%emt 0:00:05]} Nfd7 {[%emt 0:00:05]} 5. Bd3 {[%emt 0:00:14]} c5 {[%emt 0:00:12]} 6. c3 {[%emt 0:00:04]} Nc6 {[%emt 0:00:05]} 7. Ndf3 {[%emt 0:06:50]} Be7 {[%emt 0:03:13]} 8. Ne2 {[%emt 0:00:08]} cxd4 {[%emt 0:00:33]} 9. cxd4 {[%emt 0:00:03]} f5 {[%emt 0:01:32] C06: French Tarrasch: 3...Nf6 4 e5 Nfd7 5 Bd3 main lines} (9... O-O 10. O-O f6 11. exf6 Nxf6 12. Re1 Bb4 13. Bd2 Bxd2 14. Qxd2 Qd6 15. Ng3 Bd7 16. Rac1 Rae8 17. Bb5 Nd8 18. Bf1 Nf7 19. Ne5 Qb6 20. h3 {0-1 (35) Radzhabov,R (2406)-Alikhanov,F (2455) Sochi 2019}) 10. Nf4 {[%emt 0:02:03]} Nb6 {[%emt 0:00:32]} 11. h4 {[%emt 0:02:19]} O-O $146 {[%emt 0:04:04]} ({Predecessor:} 11... Qc7 12. Be3 Nc4 13. Bxc4 dxc4 14. Nd2 b5 15. Qh5+ Kd7 16. Qf7 Nd8 17. Qxg7 Rf8 18. d5 exd5 19. Nxd5 Rf7 20. e6+ {1-0 (20) Spiropoulos,P-Garneli,E Ikaros 1999}) 12. g3 {[%emt 0:00:12]} Bd7 {[%emt 0:02:57]} 13. a3 {[%emt 0:00:59]} Re8 {[%emt 0:01:07]} 14. Kf1 {[%emt 0:00:11]} a5 {[%emt 0:03:01]} 15. Kg2 {[%emt 0:01:15]} a4 {[%emt 0:00:31] [#]} 16. Bd2 {[%emt 0:03:47]} (16. Ng5 $142 $1 {[%mdl 512]} g6 (16... Bxg5 17. hxg5) 17. Nfxe6 Bxe6 18. Nxe6) 16... Na5 {[%emt 0:01:40] [#]} 17. Bc3 $2 {[%emt 0:01:39]} (17. Ng5 $1 $18 {[%mdl 512]} g6 (17... Bxg5 18. hxg5) 18. Ngxe6 Bxe6 19. Bxa5 Rxa5 20. Nxe6) 17... Nb3 {[%emt 0:02:58]} 18. Rb1 {[%emt 0:00:09]} Bf8 {[%emt 0:08:18]} 19. Bc2 {[%emt 0:01:04]} Na5 {[%emt 0:00:46]} 20. Ng5 {[%emt 0:00:16]} g6 {[%emt 0:00:50]} 21. Qe2 {[%emt 0:08:33]} Nac4 {[%emt 0:02:30]} 22. Rh2 {[%emt 0:05:37]} Rc8 {[%emt 0:02:27]} 23. Qf3 {[%emt 0:03:13]} Bh6 {[%emt 0:04:19]} 24. Rbh1 {[%emt 0:01:09]} Rc7 {[%emt 0:04:34]} 25. Nh5 {[%emt 0:01:32]} Bxg5 {[%emt 0:07:35]} 26. hxg5 {[%emt 0:00:20]} gxh5 {[%emt 0:00:34]} 27. Rxh5 {[%emt 0:00:18]} Re7 {[%emt 0:00:43] [#]} 28. g6 $1 {[%emt 0:03:52]} Be8 {[%emt 0:00:50]} 29. gxh7+ {[%emt 0:05:12]} Kh8 {[%emt 0:05:55]} 30. Rh6 {[%emt 0:00:10]} Bf7 {[%emt 0:00:29] [#]} 31. Bxf5 $1 {[%emt 0:02:34]} exf5 {[%emt 0:01:34]} 32. Qxf5 {[%emt 0:00:02]} Re8 {[%emt 0:03:23] [#]} 33. e6 $2 {[%emt 0:01:02] [#]} ({White must play} 33. Bb4 $1 $18) 33... Bxe6 $1 {[%emt 0:00:25]} 34. Rxe6 {[%emt 0:00:26]} Rxe6 {[%emt 0:00:36]} 35. Qxe6 {[%emt 0:00:59]} Rc6 {[%emt 0:01:05]} 36. Qf7 {[%emt 0:01:31]} (36. Qg4 $11) 36... Rc7 {[%emt 0:02:01]} 37. Qf5 {[%emt 0:00:07]} Rg7 {[%emt 0:00:55]} 38. Rh6 {[%emt 0:00:42]} Qb8 $2 {[%emt 0:03:56]} (38... Qe7 $11) 39. Qf6 $2 {[%emt 0:00:59]} (39. Re6 $18) 39... Ne3+ {[%emt 0:02:04]} 40. Kf3 {[%emt 0:01:31]} Ng4 {[%emt 0:02:19]} 41. Qxg7+ {[%emt 0:00:16]} Kxg7 {[%emt 0:00:24]} 42. h8=Q+ {[%emt 0:00:12]} Qxh8 {[%emt 0:00:08]} 43. Rxh8 {[%emt 0:00:06]} Kxh8 {[%emt 0:01:45]} 44. Kxg4 {[%emt 0:00:10]} Kg7 {[%emt 0:00:09]} 45. Kf5 {[%emt 0:00:08]} Kf7 {[%emt 0:00:18]} 46. g4 {[%emt 0:00:22]} Nc4 {[%emt 0:01:05]} 47. g5 {[%emt 0:00:32]} Kg7 {[%emt 0:03:31]} 48. f4 {[%emt 0:00:34]} Ne3+ {[%emt 0:01:16]} 49. Ke5 {[%emt 0:00:29]} Kg6 {[%emt 0:00:28]} 50. Ke6 {[%emt 0:02:45]} Ng2 $18 {[%emt 0:00:47]} 51. f5+ {[%emt 0:00:27]} Kxg5 {[%emt 0:00:08]} 52. Bd2+ {[%emt 0:00:08]} Kh5 {[%emt 0:00:45]} 53. f6 {[%emt 0:00:32]} Nh4 {[%emt 0:00:22]} 54. f7 {[%emt 0:00:36]} Ng6 {[%emt 0:00:15]} 55. Kxd5 {[%emt 0:00:06]} Nf8 {[%emt 0:01:28]} 56. Bb4 {[%emt 0:00:12]} Nh7 {[%emt 0:00:13]} 57. f8=Q {[%emt 0:00:06]} 1-0

[Event "Gibraltar Amateurs B 2020"]
[Site "Caleta"]
[Date "2020.01.29"]
[Round "5.2"]
[White "Hari Charan Sai Kalluri"]
[Black "Teh, Wee Zhun"]
[Result "1-0"]
[ECO "B13"]
[WhiteElo "1836"]
[BlackElo "1857"]
[Annotator "NA RC"]
[PlyCount "70"]
[EventDate "2020.01.20"]
[EventType "swiss"]
[EventCountry "GGB"]
[SourceTitle "playchess.com"]
[Source "ChessBase"]
[SourceQuality "1"]
[TimeControl "6600+10"]

{[%evp 8,70,-8,32767,32767,32767,-20,32767,-4,-25,32767,32767,32767,32767,-45,32767,-29,-35,-42,-58,32767,32767,-34,32767,32767,32767,32767,32767,50,5,50,32767,31,12,32767,32767,13,32767,32767,-78,-41,-60,32767,-86,0,32767,0,0,32767,-86,32767,-209,32767,-161,-168,32767,-167,-513,32767,32767,-600,32767,-631,-530,-689]} 1. d4 {[%emt 0:00:00]} d5 {[%emt 0:00:00]} 2. Nf3 {[%emt 0:00:00]} Nf6 {[%emt 0:00:11]} 3. e3 {[%emt 0:00:04]} c5 {[%emt 0:00:21]} 4. Bd3 {[%emt 0:00:13]} Nc6 {[%emt 0:01:35]} 5. O-O {[%emt 0:00:14]} Bg4 {[%emt 0:01:20]} 6. c3 {[%emt 0:00:57]} e6 {[%emt 0:00:55]} 7. Nbd2 {[%emt 0:01:40]} cxd4 {[%emt 0:01:10]} 8. exd4 {[%emt 0:00:25]} Bd6 {[%emt 0:01:30]} 9. Re1 {[%emt 0:01:40]} O-O {[%emt 0:00:12] B13: Caro-Kann: Exchange Variation and Panov-Botvinnik Attack} 10. b4 $146 {[%emt 0:04:51]} ({Predecessor:} 10. Nf1 Qc7 11. h3 Bh5 12. Bg5 Nd7 13. Bh4 Rab8 14. Bxh7+ Kxh7 15. Ng5+ Kh6 16. Qd3 Bg6 17. Qd2 {0-1 (32) Bacrot,E (2697)-Ivanisevic,I (2653) Berlin 2015}) 10... Rc8 {[%emt 0:11:47]} 11. Bb2 {[%emt 0:02:09]} Qc7 {[%emt 0:02:00]} 12. h3 {[%emt 0:01:57]} Bh5 {[%emt 0:00:35]} 13. b5 {[%emt 0:05:06]} Nb8 {[%emt 0:08:54]} 14. Qb3 {[%emt 0:14:02]} Nbd7 {[%emt 0:01:18]} 15. Rac1 {[%emt 0:06:37]} Nb6 {[%emt 0:01:25]} 16. Ne5 {[%emt 0:18:36]} Rfd8 {[%emt 0:17:14]} 17. c4 {[%emt 0:05:19]} dxc4 {[%emt 0:02:17]} 18. Ndxc4 {[%emt 0:00:40]} Nxc4 {[%emt 0:00:24]} 19. Bxc4 {[%emt 0:00:26]} Qb8 {[%emt 0:14:18]} 20. f4 {[%emt 0:03:04]} Bg6 {[%emt 0:10:26]} 21. Qf3 {[%emt 0:14:27]} Bb4 {[%emt 0:03:06]} 22. Re2 {[%emt 0:02:05]} Nd7 {[%emt 0:06:25] [#]} 23. g4 $2 {[%emt 0:07:18]} (23. d5 $1 $16 exd5 24. f5) 23... Nxe5 {[%emt 0:02:33]} 24. dxe5 {[%emt 0:01:19]} Bd2 {[%emt 0:01:18]} 25. Rd1 {[%emt 0:05:30]} Be3+ {[%emt 0:03:28]} (25... Rxc4 $17 26. Rexd2 Rxd2 27. Rxd2 Be4) 26. Rxe3 {[%emt 0:00:40]} Rxd1+ {[%emt 0:00:16]} 27. Qxd1 {[%emt 0:00:01]} Rxc4 {[%emt 0:00:11]} 28. Qf3 {[%emt 0:03:38]} (28. f5 $11 {remains equal.} exf5 29. Rd3) 28... Qc8 {[%emt 0:00:41]} 29. h4 {[%emt 0:02:37]} (29. Rc3 $17 {is a better defense.}) 29... h5 {[%emt 0:02:21]} 30. gxh5 {[%emt 0:01:20]} Bf5 {[%emt 0:00:07]} 31. Kh2 {[%emt 0:03:11]} Qd8 {[%emt 0:03:05]} 32. Qf2 $2 {[%emt 0:00:58]} (32. Kg3) 32... Qd1 {[%emt 0:00:57]} 33. Rc3 {[%emt 0:01:05]} Re4 {[%emt 0:01:54]} (33... Rxc3 $2 34. Bxc3 Qxh5 35. b6 $19) 34. Re3 {[%emt 0:02:47]} Rxe3 {[%emt 0:01:19]} 35. Qxe3 {[%emt 0:00:02]} Qc2+ $19 {[%emt 0:00:11] Double Attack} 1-0